bitfinex/quotes_SOLUSD_20220212
["timestamp","ask_amount","ask_price","bid_price","bid_amount"]
[1644678518341,1.46586274,94.568,94.48,15.23]
[1644678518742,1.46586274,94.563,94.48,15.23]
[1644678519146,24.9117,94.566,94.48,15.23]
[1644678519147,7.00486274,94.562,94.48,15.23]
[1644678519348,15.8787,94.55,94.48,15.23]
[1644678519547,40.57715024,94.548,94.46,15.23]
[1644678519846,48.99896274,94.547,94.44,15.8809]
[1644678520044,1.46586274,94.538,94.44,15.8809]
[1644678520245,5.541,94.537,94.44,31.1109]
[1644678520749,1.46586274,94.536,94.44,31.1109]
[1644678520945,6.75686274,94.536,94.44,31.1109]
[1644678521147,1.71586274,94.535,94.44,31.1109]
[1644678521547,1.46586274,94.534,94.44,31.1109]
[1644678521748,15.8824,94.53,94.44,31.1109]
[1644678521948,28.4891,94.529,94.44,31.1109]
[1644678522149,28.7391,94.529,94.44,31.1109]
[1644678522749,15.8842,94.52,94.44,15.23]
[1644678523050,105.1,94.528,94.39,52.9541]
[1644678523051,48.58713416,94.518,94.39,52.9541]
[1644678523248,1.46586274,94.505,94.39,68.1841]
[1644678523449,1.46586274,94.501,94.39,68.1841]
[1644678523651,5.293,94.5,94.391,2.62390296]
[1644678523850,1.46586274,94.499,94.391,2.62390296]
[1644678524049,1.46586274,94.5,94.391,2.62390296]
[1644678524253,1.46586274,94.497,94.391,2.62390296]
[1644678524850,40.97289167,94.489,94.4,15.8876]
[1644678525051,48.76289167,94.489,94.41,15.23]
[1644678525253,105.1,94.487,94.39,15.23]
[1644678525452,10.53955846,94.486,94.39,15.23]
[1644678525650,1.46586274,94.461,94.37,15.23]
[1644678525851,42.2299028,94.459,94.37,15.23]
[1644678526052,1.46586274,94.451,94.37,15.23]
[1644678526251,1.46586274,94.457,94.37,15.23]
[1644678526454,0.25,94.45,94.37,15.23]
[1644678526854,5.296,94.449,94.37,15.23]
[1644678527255,0.25,94.448,94.37,15.23]
[1644678527451,5.296,94.447,94.37,15.23]
[1644678527852,0.25,94.446,94.37,15.23]
[1644678528855,0.25,94.449,94.37,15.23]
[1644678530155,5.296,94.448,94.37,15.23]
[1644678530353,0.25,94.447,94.37,15.23]
[1644678530754,5.296,94.446,94.37,15.23]
[1644678531156,0.25,94.445,94.37,15.23]
[1644678531455,5.296,94.444,94.37,15.23]
[1644678531857,47.1836,94.46,94.371,2.62390296]
[1644678532654,47.1836,94.46,94.37,15.23]
[1644678532854,15.8959,94.45,94.37,15.23]
[1644678533054,5.296,94.449,94.35,31.1259]
[1644678533255,5.546,94.449,94.35,31.1259]
[1644678533456,0.25,94.449,94.35,31.1259]
[1644678533655,5.296,94.448,94.35,31.1259]
[1644678533857,23.3531,94.447,94.35,31.1259]
[1644678534061,5.296,94.446,94.35,31.1259]
[1644678534557,15.8982,94.44,94.35,15.23]
[1644678534858,5.546,94.439,94.35,15.23]
[1644678535958,5.296,94.439,94.35,15.23]
[1644678536157,5.296,94.446,94.351,2.62390296]
[1644678536358,23.1031,94.447,94.351,2.62390296]
[1644678536758,23.1031,94.447,94.36,15.8955]
[1644678536962,23.1031,94.447,94.36,31.1255]
[1644678537760,0.25,94.446,94.36,31.1255]
[1644678537961,5.546,94.446,94.36,31.1255]
[1644678538964,5.296,94.446,94.36,31.1255]
[1644678539165,23.1031,94.447,94.36,31.1255]
[1644678539378,5.296,94.446,94.36,31.1255]
[1644678539790,5.296,94.446,94.361,2.62390296]
[1644678539987,42.2299028,94.459,94.39,15.8893]
[1644678540190,42.2299028,94.459,94.4,15.23]
[1644678541587,42.2299028,94.459,94.4,31.119]
[1644678542589,5.293,94.458,94.4,31.119]
[1644678543390,5.293,94.484,94.401,2.62390296]
[1644678543590,1.46586274,94.498,94.42,15.884]
[1644678543790,1.46586274,94.501,94.421,5.293]
[1644678544192,36.36025626,94.5,94.421,5.293]
[1644678545193,1.46586274,94.493,94.421,5.293]
[1644678545392,1.46586274,94.493,94.42,31.114]
[1644678545596,1.46586274,94.49,94.42,31.114]
[1644678545792,1.46586274,94.489,94.42,31.114]
[1644678546091,1.46586274,94.489,94.42,15.23]
[1644678546291,5.293,94.488,94.42,15.23]
[1644678546497,6.75886274,94.488,94.42,15.23]
[1644678546692,1.46586274,94.491,94.42,15.23]
[1644678546892,1.46586274,94.491,94.421,5.293]
[1644678547091,1.46586274,94.487,94.42,15.23]
[1644678547295,1.46586274,94.488,94.42,15.23]
[1644678547794,1.46586274,94.488,94.42,31.1152]
[1644678547992,1.46586274,94.488,94.421,2.62390296]
[1644678548196,1.46586274,94.494,94.421,2.62390296]
[1644678548394,1.46586274,94.494,94.42,15.23]
[1644678548593,1.46586274,94.495,94.42,15.23]
[1644678548994,1.46586274,94.496,94.43,15.8831]
[1644678549195,1.46586274,94.49,94.44,15.23]
[1644678549796,1.46586274,94.491,94.44,15.23]
[1644678549997,1.46586274,94.489,94.44,15.23]
[1644678550194,1.46586274,94.491,94.44,31.1122]
[1644678550393,36.36025626,94.5,94.44,31.1122]
[1644678550394,1.46586274,94.495,94.44,31.1122]
[1644678550594,1.46586274,94.496,94.44,31.1122]
[1644678550994,1.46586274,94.49,94.44,31.1122]
[1644678551196,1.46586274,94.491,94.44,31.1122]
[1644678551996,1.46586274,94.487,94.44,31.1122]
[1644678552197,1.46586274,94.489,94.44,31.1122]
[1644678552501,5.292,94.488,94.44,15.23]
[1644678552698,1.46586274,94.483,94.422,5.292]
[1644678552898,5.542,94.488,94.422,5.292]
[1644678552899,1.46586274,94.474,94.422,5.292]
[1644678553205,36.29319148,94.467,94.422,5.292]
[1644678553597,5.293,94.466,94.422,5.292]
[1644678553798,5.543,94.466,94.4,15.23]
[1644678553999,1.46586274,94.462,94.4,15.23]
[1644678554197,1.46586274,94.458,94.4,15.23]
[1644678554399,1.46586274,94.457,94.4,15.23]
[1644678554598,1.46586274,94.456,94.4,15.23]
[1644678554801,0.25,94.455,94.4,15.23]
[1644678555299,1.71586274,94.455,94.4,15.23]
[1644678555500,5.295,94.454,94.4,15.23]
[1644678555703,0.25,94.453,94.4,15.23]
[1644678556101,1.46586274,94.456,94.4,15.23]
[1644678556302,1.46586274,94.455,94.4,15.23]
[1644678556502,1.46586274,94.458,94.4,15.23]
[1644678557102,1.46586274,94.457,94.4,15.23]
[1644678557305,1.46586274,94.458,94.4,15.23]
[1644678558104,1.46586274,94.457,94.4,15.23]
[1644678558303,1.46586274,94.462,94.4,15.23]
[1644678558505,1.46586274,94.465,94.4,15.23]
[1644678558805,0.25,94.461,94.401,2.62390296]
[1644678559005,0.25,94.461,94.401,7.91690296]
[1644678559207,23.8075,94.466,94.401,7.91690296]
[1644678559405,1.46586274,94.468,94.41,15.8869]
[1644678559604,1.46586274,94.477,94.42,15.23]
[1644678559804,1.46586274,94.482,94.43,15.23]
[1644678560008,1.46586274,94.484,94.44,15.23]
[1644678560409,1.46586274,94.493,94.44,15.23]
[1644678560607,1.46586274,94.494,94.44,15.23]
[1644678560804,1.46586274,94.494,94.441,2.62390296]
[1644678561206,1.46586274,94.49,94.441,2.62390296]
[1644678561408,1.46586274,94.493,94.441,2.62390296]
[1644678561806,1.46586274,94.493,94.45,15.8801]
[1644678562006,39.45240145,94.506,94.45,15.8801]
[1644678562007,1.46586274,94.494,94.45,15.23]
[1644678562208,0.25,94.493,94.45,15.23]
[1644678562407,1.46586274,94.489,94.45,15.23]
[1644678562608,1.46586274,94.487,94.45,15.23]
[1644678563009,1.46586274,94.485,94.45,15.23]
[1644678563211,1.46586274,94.486,94.45,15.23]
[1644678563610,1.46586274,94.485,94.45,15.23]
[1644678564215,0.25,94.484,94.43,15.23]
[1644678564414,40.68241527,94.475,94.421,5.292]
[1644678564612,6.75886274,94.474,94.393,5.293]
[1644678564813,1.46586274,94.465,94.37,15.23]
[1644678565014,1.46586274,94.453,94.37,15.23]
[1644678565215,1.46586274,94.451,94.37,15.23]
[1644678565414,1.46586274,94.449,94.37,15.23]
[1644678565615,36.56979181,94.44,94.37,15.23]
[1644678566015,1.46586274,94.437,94.37,15.23]
[1644678566217,0.25,94.436,94.37,15.23]
[1644678566815,0.25,94.436,94.37,31.1225]
[1644678567417,5.296,94.438,94.37,15.23]
[1644678567418,0.25,94.437,94.37,15.23]
[1644678567620,0.25,94.437,94.298,5.296]
[1644678567621,1.46586274,94.424,94.302,1.4927942]
[1644678567824,44.24401832,94.405,94.3,15.23]
[1644678568020,1.46586274,94.396,94.3,15.23]
[1644678568223,1.46586274,94.39,94.298,5.296]
[1644678568427,1.46586274,94.383,94.298,5.296]
[1644678568719,8.94586274,94.383,94.298,5.296]
[1644678568920,1.46586274,94.38,94.298,5.296]
[1644678569120,5.3,94.379,94.298,5.296]
[1644678569319,1.46586274,94.381,94.274,2.62390296]
[1644678569519,1.46586274,94.38,94.28,15.9082]
[1644678569718,1.46586274,94.382,94.28,15.9082]
[1644678569918,5.3,94.381,94.28,15.9082]
[1644678570127,7.27,94.381,94.28,31.1382]
[1644678570326,5.3,94.38,94.28,31.1382]
[1644678570520,21.2082,94.38,94.28,31.1382]
[1644678570725,21.2082,94.38,94.28,15.23]
[1644678570919,2.62390296,94.379,94.243,14.68601937]
[1644678571123,2.62390296,94.379,94.149,75.5377]
[1644678571124,6.76686274,94.378,94.216,1.4927942]
[1644678571324,1.46586274,94.359,94.21,15.23]
[1644678571524,36.27375432,94.341,94.21,15.23]
[1644678571723,1.46586274,94.331,94.21,30.49742203]
[1644678571924,1.46586274,94.333,94.22,15.9182]
[1644678572122,36.27375432,94.341,94.22,15.9182]
[1644678572123,36.27375432,94.341,94.23,15.23]
[1644678572520,36.27375432,94.341,94.231,17.89132499]
[1644678572721,5.303,94.34,94.231,42.12409293]
[1644678572925,5.303,94.34,94.232,32.54123325]
[1644678573349,5.303,94.34,94.233,32.54123325]
[1644678573848,5.303,94.34,94.26,15.9109]
[1644678574051,5.553,94.34,94.26,31.1409]
[1644678576453,0.25,94.34,94.26,31.1409]
[1644678576653,0.25,94.34,94.261,2.62390296]
[1644678576855,5.301,94.339,94.261,2.62390296]
[1644678577054,5.301,94.339,94.243,2.62390296]
[1644678577255,5.301,94.339,94.24,12.74]
[1644678577855,15.917,94.33,94.24,28.6547]
[1644678578060,5.303,94.329,94.214,15.26742203]
[1644678578257,2.62390296,94.329,94.22,12.74]
[1644678578459,0.25,94.33,94.22,12.74]
[1644678578660,5.303,94.336,94.221,17.89132499]
[1644678578859,5.303,94.336,94.25,15.9121]
[1644678579163,5.301,94.375,94.26,65.7662]
[1644678579357,21.2103,94.38,94.26,65.7662]
[1644678579556,15.9093,94.38,94.261,2.62390296]
[1644678579766,5.301,94.379,94.261,2.62390296]
[1644678579957,46.4179,94.378,94.261,2.62390296]
[1644678580160,5.301,94.377,94.261,2.62390296]
[1644678580861,5.301,94.377,94.28,15.9079]
[1644678581062,5.301,94.39,94.29,12.74]
[1644678581262,24.3839,94.392,94.29,12.74]
[1644678581263,53.50116274,94.424,94.29,12.74]
[1644678581460,5.299,94.408,94.29,12.74]
[1644678581663,6.76486274,94.423,94.291,2.62390296]
[1644678581863,41.88721124,94.422,94.291,7.92290296]
[1644678582060,5.299,94.421,94.291,7.92290296]
[1644678582263,0.25,94.42,94.292,2.62390296]
[1644678582460,5.299,94.419,94.293,5.299]
[1644678582862,5.299,94.419,94.32,15.9021]
[1644678583065,5.299,94.419,94.33,12.74]
[1644678584865,5.299,94.419,94.33,28.6397]
[1644678588566,5.299,94.419,94.33,12.74]
[1644678588768,1.46586274,94.413,94.3,12.74]
[1644678588968,5.299,94.412,94.29,12.74]
[1644678589168,1.46586274,94.401,94.29,12.74]
[1644678589369,1.46586274,94.395,94.29,12.74]
[1644678589668,45.64920994,94.385,94.29,12.74]
[1644678589867,1.46586274,94.384,94.29,12.74]
[1644678590068,15.9093,94.38,94.29,12.74]
[1644678590266,5.3,94.379,94.29,12.74]
[1644678590971,2.62390296,94.378,94.29,12.74]
[1644678591167,5.3,94.377,94.29,12.74]
[1644678591567,15.91,94.37,94.29,12.74]
[1644678591767,5.3,94.369,94.254,2.62390296]
[1644678591969,1.46586274,94.362,94.26,12.74]
[1644678592168,5.301,94.361,94.26,12.74]
[1644678592571,0.25,94.36,94.26,12.74]
[1644678592773,0.25,94.36,94.27,15.9105]
[1644678592972,5.301,94.359,94.27,28.6505]
[1644678593576,6.76686274,94.359,94.27,28.6505]
[1644678594071,1.46586274,94.356,94.27,12.74]
[1644678594275,1.46586274,94.342,94.27,12.74]
[1644678594474,1.46586274,94.341,94.27,12.74]
[1644678594672,1.46586274,94.339,94.27,12.74]
[1644678594872,36.15615782,94.355,94.27,12.74]
[1644678594873,1.46586274,94.338,94.27,12.74]
[1644678595576,1.46586274,94.337,94.27,12.74]
[1644678595774,1.46586274,94.338,94.27,12.74]
[1644678596175,1.46586274,94.327,94.27,12.74]
[1644678596375,40.99820337,94.326,94.27,12.74]
[1644678596976,5.301,94.325,94.27,12.74]
[1644678597176,6.76686274,94.325,94.25,12.74]
[1644678597374,1.46586274,94.324,94.25,12.74]
[1644678597575,5.301,94.323,94.25,12.74]
[1644678597774,1.46586274,94.319,94.25,12.74]
[1644678597977,1.46586274,94.316,94.25,12.74]
[1644678598175,1.46586274,94.314,94.25,12.74]
[1644678599899,1.46586274,94.314,94.25,28.6542]
[1644678600500,1.46586274,94.313,94.25,28.6542]
[1644678600997,1.46586274,94.313,94.251,2.62390296]
[1644678601199,1.46586274,94.325,94.251,2.62390296]
[1644678601401,40.99820337,94.326,94.27,15.9104]
[1644678601597,40.99820337,94.326,94.27,28.6504]
[1644678601798,1.46586274,94.333,94.271,2.62390296]
[1644678601998,1.46586274,94.334,94.271,2.62390296]
[1644678602200,1.46586274,94.335,94.271,2.62390296]
[1644678602399,1.46586274,94.335,94.28,15.9089]
[1644678602600,1.46586274,94.336,94.28,15.9089]
[1644678602800,1.46586274,94.336,94.28,28.6489]
[1644678603000,1.46586274,94.336,94.281,2.62390296]
[1644678603201,37.09743559,94.337,94.281,2.62390296]
[1644678603400,1.46586274,94.336,94.281,2.62390296]
[1644678603600,1.46586274,94.335,94.281,2.62390296]
[1644678604104,35.63157285,94.337,94.281,2.62390296]
[1644678604105,6.76686274,94.334,94.281,2.62390296]
[1644678604301,1.46586274,94.332,94.254,2.62390296]
[1644678604502,1.46586274,94.318,94.254,2.62390296]
[1644678604706,1.46586274,94.317,94.254,2.62390296]
[1644678605203,1.46586274,94.316,94.254,2.62390296]
[1644678605403,6.76686274,94.319,94.254,2.62390296]
[1644678605603,1.46586274,94.32,94.254,2.62390296]
[1644678605803,5.301,94.319,94.254,2.62390296]
[1644678606003,24.0533,94.336,94.254,2.62390296]
[1644678606004,1.46586274,94.32,94.254,2.62390296]
[1644678606604,1.46586274,94.323,94.254,2.62390296]
[1644678606904,1.46586274,94.324,94.254,2.62390296]
[1644678607305,1.46586274,94.325,94.254,2.62390296]
[1644678607506,1.46586274,94.328,94.26,15.9125]
[1644678607810,35.63157285,94.337,94.27,12.74]
[1644678608012,1.46586274,94.339,94.271,5.301]
[1644678608206,1.46586274,94.344,94.271,7.92490296]
[1644678608606,1.46586274,94.343,94.28,15.909]
[1644678608806,1.46586274,94.33,94.26,2.62390296]
[1644678609009,1.46586274,94.319,94.246,2.62390296]
[1644678609206,1.46586274,94.31,94.246,2.62390296]
[1644678609405,5.303,94.309,94.23,12.74]
[1644678609607,6.76886274,94.309,94.24,15.915]
[1644678609808,1.46586274,94.309,94.24,15.915]
[1644678610015,5.303,94.308,94.24,15.915]
[1644678610215,6.76886274,94.309,94.24,15.915]
[1644678610910,5.303,94.309,94.24,15.915]
[1644678611516,1.46586274,94.31,94.25,12.74]
[1644678611711,1.46586274,94.329,94.26,15.9109]
[1644678611911,1.46586274,94.328,94.27,12.74]
[1644678612111,1.46586274,94.331,94.27,12.74]
[1644678612312,1.46586274,94.324,94.27,12.74]
[1644678613114,1.46586274,94.324,94.271,2.62390296]
[1644678613315,1.46586274,94.33,94.271,7.92490296]
[1644678613516,1.46586274,94.339,94.271,5.301]
[1644678613820,1.46586274,94.337,94.27,12.74]
[1644678614022,1.46586274,94.327,94.27,12.74]
[1644678614216,47.50796747,94.326,94.27,12.74]
[1644678614417,1.46586274,94.32,94.26,15.9114]
[1644678614714,1.46586274,94.318,94.26,15.9114]
[1644678614916,1.46586274,94.317,94.26,15.9114]
[1644678615115,1.46586274,94.313,94.26,15.9114]
[1644678615314,1.46586274,94.312,94.26,15.9114]
[1644678616116,1.46586274,94.312,94.25,12.74]
[1644678616315,6.76886274,94.311,94.25,12.74]
[1644678616517,1.46586274,94.309,94.25,12.74]
[1644678616716,5.303,94.308,94.25,12.74]
[1644678616919,1.46586274,94.312,94.25,12.74]
[1644678617119,1.46586274,94.313,94.25,12.74]
[1644678617516,1.46586274,94.303,94.25,12.74]
[1644678617718,1.46586274,94.306,94.25,28.654]
[1644678618516,1.46586274,94.309,94.251,2.62390296]
[1644678618720,1.46586274,94.315,94.251,2.62390296]
[1644678619123,1.46586274,94.316,94.251,2.62390296]
[1644678619519,1.46586274,94.319,94.252,5.303]
[1644678619720,1.46586274,94.316,94.26,15.9105]
[1644678619920,1.46586274,94.317,94.26,28.6505]
[1644678620119,47.50796747,94.326,94.26,28.6505]
[1644678620120,1.46586274,94.316,94.26,28.6505]
[1644678620319,1.46586274,94.321,94.26,28.6505]
[1644678620518,1.46586274,94.322,94.26,28.6505]
[1644678621019,1.46586274,94.323,94.26,28.6505]
[1644678621220,1.46586274,94.32,94.26,28.6505]
[1644678621419,47.50796747,94.326,94.26,28.6505]
[1644678621420,1.46586274,94.321,94.26,28.6505]
[1644678622020,47.50796747,94.326,94.26,28.6505]
[1644678623023,47.50796747,94.326,94.27,15.9108]
[1644678623222,47.50796747,94.326,94.27,28.6508]
[1644678624023,1.46586274,94.331,94.27,28.6508]
[1644678624327,1.46586274,94.345,94.271,2.62390296]
[1644678624525,1.46586274,94.345,94.28,15.9057]
[1644678624729,1.46586274,94.358,94.29,12.74]
[1644678624926,1.46586274,94.365,94.29,20.61]
[1644678625129,1.46586274,94.367,94.291,2.62390296]
[1644678625324,1.46586274,94.368,94.3,53.0013]
[1644678625527,1.46586274,94.362,94.31,12.74]
[1644678626025,1.46586274,94.361,94.32,15.9015]
[1644678626224,1.46586274,94.369,94.33,12.74]
[1644678626425,1.46586274,94.369,94.33,23.91]
[1644678626624,1.46586274,94.37,94.33,23.91]
[1644678626830,1.46586274,94.371,94.33,23.91]
[1644678627226,1.46586274,94.37,94.33,23.91]
[1644678627428,1.46586274,94.372,94.33,23.91]
[1644678627726,1.46586274,94.367,94.33,12.74]
[1644678627927,1.46586274,94.363,94.33,12.74]
[1644678628127,1.46586274,94.366,94.33,12.74]
[1644678628329,1.46586274,94.37,94.33,12.74]
[1644678628830,1.46586274,94.371,94.33,12.74]
[1644678629028,49.47270204,94.374,94.33,12.74]
[1644678629432,1.46586274,94.374,94.33,12.74]
[1644678629828,5.299,94.373,94.33,12.74]
[1644678630429,44.52209427,94.372,94.33,12.74]
[1644678630631,5.299,94.376,94.33,12.74]
[1644678631230,15.9033,94.4,94.33,12.74]
[1644678631231,1.46586274,94.377,94.33,12.74]
[1644678631630,6.76486274,94.376,94.33,12.74]
[1644678631830,41.06886378,94.375,94.33,12.74]
[1644678632035,5.299,94.374,94.33,12.74]
[1644678633350,41.06886378,94.375,94.33,12.74]
[1644678634752,8.17290296,94.374,94.301,5.299]
[1644678635053,1.46586274,94.352,94.301,5.299]
[1644678635250,1.46586274,94.347,94.28,12.74]
[1644678635451,1.46586274,94.339,94.28,12.74]
[1644678635654,39.8014562,94.346,94.26,12.74]
[1644678635655,1.46586274,94.334,94.26,12.74]
[1644678635951,1.46586274,94.335,94.26,12.74]
[1644678636151,5.551,94.333,94.26,12.74]
[1644678636353,1.46586274,94.332,94.26,12.74]
[1644678636552,15.9142,94.33,94.26,12.74]
[1644678636952,0.25,94.329,94.26,12.74]
[1644678637351,15.9142,94.33,94.26,12.74]
[1644678637553,5.301,94.329,94.26,12.74]
[1644678638154,0.25,94.328,94.26,12.74]
[1644678638351,5.301,94.327,94.26,12.74]
[1644678638954,5.301,94.329,94.26,12.74]
[1644678640155,15.9142,94.33,94.26,12.74]
[1644678641954,5.301,94.329,94.26,12.74]
[1644678642558,5.301,94.329,94.24,15.9133]
[1644678642757,0.25,94.328,94.25,15.29]
[1644678642954,5.301,94.327,94.25,15.29]
[1644678643556,5.301,94.328,94.25,15.29]
[1644678644056,5.301,94.328,94.25,31.2017]
[1644678644257,5.301,94.328,94.25,33.82560296]
[1644678644459,5.301,94.328,94.25,47.98983314]
[1644678645056,0.25,94.327,94.25,47.98983314]
[1644678645257,5.301,94.326,94.25,47.98983314]
[1644678645758,0.25,94.325,94.25,47.98983314]
[1644678645957,5.301,94.324,94.25,47.98983314]
[1644678646360,0.25,94.323,94.25,47.98983314]
[1644678646558,5.301,94.322,94.25,47.98983314]
[1644678647759,5.303,94.327,94.25,47.98983314]
[1644678648360,5.303,94.327,94.25,31.2017]
[1644678649160,29.4435,94.328,94.251,2.62390296]
[1644678649362,24.1425,94.328,94.251,2.62390296]
[1644678649562,24.1425,94.328,94.26,15.9102]
[1644678649760,24.1425,94.328,94.26,31.2002]
[1644678649963,24.1425,94.328,94.26,15.29]
[1644678650163,5.551,94.327,94.26,15.29]
[1644678650763,5.301,94.327,94.26,15.29]
[1644678650961,24.1425,94.328,94.26,15.29]
[1644678651161,0.25,94.326,94.26,15.29]
[1644678651362,5.301,94.333,94.26,15.29]
[1644678651562,6.76686274,94.338,94.261,2.62390296]
[1644678651765,5.301,94.338,94.261,2.62390296]
[1644678651962,5.301,94.341,94.261,2.62390296]
[1644678652362,1.46586274,94.34,94.261,2.62390296]
[1644678652565,6.76686274,94.34,94.261,2.62390296]
[1644678652762,0.25,94.339,94.261,2.62390296]
[1644678652962,5.301,94.338,94.261,2.62390296]
[1644678653366,0.25,94.337,94.261,2.62390296]
[1644678653568,5.301,94.336,94.261,2.62390296]
[1644678653765,0.25,94.335,94.261,2.62390296]
[1644678653967,5.301,94.334,94.261,2.62390296]
[1644678654567,5.301,94.34,94.261,2.62390296]
[1644678655369,5.301,94.34,94.27,15.9078]
[1644678655570,22.5114,94.341,94.28,15.29]
[1644678655767,22.5114,94.341,94.257,15.7537]
[1644678655768,22.5114,94.341,94.29,15.29]
[1644678655968,22.5114,94.341,94.3,15.29]
[1644678657468,0.25,94.34,94.3,15.29]
[1644678657872,5.301,94.339,94.3,15.29]
[1644678658271,0.25,94.338,94.3,15.29]
[1644678658670,5.301,94.337,94.3,15.29]
[1644678659071,0.25,94.336,94.3,15.29]
[1644678659272,5.301,94.335,94.3,15.29]
[1644678659672,0.25,94.334,94.3,15.29]
[1644678661074,0.25,94.34,94.3,15.29]
[1644678662173,1.46586274,94.339,94.3,15.29]
[1644678662576,0.25,94.338,94.3,15.29]
[1644678662877,1.46586274,94.336,94.3,15.29]
[1644678663074,5.301,94.335,94.3,15.29]
[1644678663273,1.71586274,94.338,94.3,15.29]
[1644678663475,0.25,94.334,94.3,15.29]
[1644678663674,1.71586274,94.338,94.3,15.29]
[1644678664076,0.25,94.338,94.3,15.29]
[1644678664376,1.46586274,94.331,94.3,15.29]
[1644678664576,1.46586274,94.332,94.3,15.29]
[1644678665479,1.46586274,94.329,94.3,15.29]
[1644678665680,1.46586274,94.325,94.28,15.29]
[1644678666077,1.46586274,94.323,94.28,15.29]
[1644678666376,1.46586274,94.322,94.28,15.29]
[1644678666576,1.71586274,94.322,94.28,15.29]
[1644678667577,1.46586274,94.318,94.28,15.29]
[1644678667782,1.46586274,94.325,94.28,15.29]
[1644678668179,1.46586274,94.326,94.28,15.29]
[1644678668378,1.46586274,94.327,94.28,15.29]
[1644678668580,1.46586274,94.328,94.281,2.62390296]
[1644678669180,0.25,94.327,94.281,2.62390296]
[1644678669384,1.46586274,94.321,94.28,15.29]
[1644678669584,1.46586274,94.312,94.23,15.29]
[1644678669782,1.46586274,94.299,94.23,15.29]
[1644678669986,1.46586274,94.297,94.23,31.2042]
[1644678670188,34.892251,94.298,94.231,2.62390296]
[1644678670384,1.46586274,94.307,94.231,2.62390296]
[1644678670783,1.46586274,94.309,94.231,2.62390296]
[1644678671084,1.46586274,94.311,94.25,15.9119]
[1644678671284,1.46586274,94.323,94.25,15.9119]
[1644678671487,1.46586274,94.323,94.26,15.29]
[1644678671685,1.46586274,94.323,94.27,15.29]
[1644678671884,1.46586274,94.324,94.28,15.29]
[1644678672285,1.46586274,94.321,94.28,15.29]
[1644678673089,1.46586274,94.321,94.28,17.91390296]
[1644678673288,1.46586274,94.325,94.28,17.91390296]
[1644678673487,1.46586274,94.326,94.28,17.91390296]
[1644678673886,1.46586274,94.323,94.28,15.29]
[1644678674186,1.46586274,94.32,94.28,15.29]
[1644678674386,1.71586274,94.322,94.28,15.29]
[1644678674606,1.46586274,94.319,94.28,15.29]
[1644678674785,1.46586274,94.318,94.28,15.29]
[1644678674987,1.46586274,94.319,94.28,15.29]
[1644678675386,5.301,94.318,94.28,15.29]
[1644678675585,1.46586274,94.322,94.28,15.29]
[1644678675791,34.84506082,94.331,94.28,15.29]
[1644678675792,1.46586274,94.321,94.28,15.29]
[1644678675989,1.46586274,94.319,94.254,2.62390296]
[1644678676187,1.46586274,94.316,94.26,15.29]
[1644678676590,1.46586274,94.314,94.26,15.29]
[1644678677989,23.5693,94.33,94.26,15.29]
[1644678677990,1.46586274,94.307,94.26,15.29]
[1644678678189,0.25,94.306,94.26,15.29]
[1644678678392,1.46586274,94.304,94.26,15.29]
[1644678678788,1.46586274,94.308,94.26,15.29]
[1644678679790,5.303,94.307,94.26,15.29]
[1644678680190,23.6741,94.329,94.26,15.29]
[1644678680191,1.71586274,94.306,94.26,15.29]
[1644678680389,1.46586274,94.304,94.26,15.29]